Cogmind - Beta 13 @@@ ROGUE MODE // 2024.06.30 @ 17:25:41 Player: mournfully Result: Destroyed by 8R-AWN with 8R-AWN's Boregun Performance ------------- Evolutions (1) 500 Regions Visited (5) 1000 Robots Destroyed (79) 395 Value Destroyed (1655) 1655 Prototype IDs (3) 60 Alien Tech Used (0) 0 Bonus (0) 0 TOTAL SCORE: 3610 Bonus ------- High Alert Combat Kills 11 Friendly Fire -11 Cogmind --------- Core Integrity 0/400 Matter 23/300 Energy 100/100 System Corruption 3% Temperature Cool (0) Movement Core (1350) Ox26 Location -9/Exiles Parts ------- > --- POWER (1) -------- (None) > --- PROPULSION (2) --- (None) > --- UTILITY (4) ------ Huge Storage Unit Targeting Computer > --- WEAPON (2) ------- (None) > --- INVENTORY (25) --- Hover Unit Hover Unit Heat Sink Improved Heat Sink Medium Storage Unit Sensor Array Signal Interpreter Signal Interpreter Seismic Detector Transport Network Coupler Targeting Computer Shield Generator Hacking Suite Tractor Beam Advanced Beam Rifle Beam Cannon Particle Cannon Heavy Assault Rifle Datajack Mace Peak State ------------ > --- POWER ------------ Improved Ion Engine > --- PROPULSION ------- Advanced Treads Advanced Treads > --- UTILITY ---------- Huge Storage Unit Sensor Array Targeting Computer Hardened Light Armor Plating > --- WEAPON ----------- Advanced Beam Rifle Rocket Launcher > --- INVENTORY -------- Ion Engine Wheel Hover Unit Hover Unit Heat Sink Improved Heat Sink Medium Storage Unit Signal Interpreter Signal Interpreter Seismic Detector Transport Network Coupler Targeting Computer Core Shielding Shield Generator Hacking Suite Tractor Beam Advanced Beam Rifle Beam Cannon Particle Cannon Light Assault Rifle Heavy Assault Rifle Grenade Launcher Datajack Mace [Rating: 22] Favorites ----------- Power Ion Engine Engine Ion Engine Propulsion Light Treads Treads Light Treads Wheel Wheel Hover Unit Hover Unit Utility Huge Storage Unit Device Seismic Detector Storage Huge Storage Unit Processor Targeting Computer Protection Hardened Light Armor Plating Weapon Beam Cannon Energy Gun Small Laser Energy Cannon Beam Cannon Ballistic Gun Heavy Assault Rifle Launcher Rocket Launcher Special Weapon Mining Laser Impact Weapon Mace Slashing Weapon Mining Claw Special Melee Weapon Datajack Build | -11 -10 -10 -9 -9 -9 ------- Run | Yrd Mat Min Mat Min Exi Slots Evolved 2 | . . . 2 . . Power . | . . . . . . Propulsion . | . . . . . . Utility 2 | . . . 2 . . Weapon . | . . . . . . Parts Attached 148 | 8 38 1 84 7 10 Power 8 | 1 2 . 4 . 1 Engine 8 | 1 2 . 4 . 1 Core . | . . . . . . Reactor . | . . . . . . Propulsion 38 | 2 6 . 24 4 2 Treads 16 | 2 2 . 10 2 . Leg . | . . . . . . Wheel 21 | . 4 . 13 2 2 Hover 1 | . . . 1 . . Flight . | . . . . . . Utility 28 | 2 5 . 19 1 1 Device 14 | 1 2 . 10 . 1 Storage 3 | 1 1 . 1 . . Processor 3 | . . . 3 . . Hackware . | . . . . . . Protection 8 | . 2 . 5 1 . Artifact . | . . . . . . Weapon 74 | 3 25 1 37 2 6 Energy Gun 8 | 3 2 . 2 . 1 Energy Cannon 20 | . 13 . 7 . . Ballistic Gun 18 | . . . 15 1 2 Ballistic Cannon . | . . . . . . Launcher 11 | . 1 1 6 1 2 Special Weapon 4 | . 4 . . . . Impact Weapon 4 | . . . 3 . 1 Slashing Weapon 8 | . 5 . 3 . . Piercing Weapon . | . . . . . . Special Melee Weapon 1 | . . . 1 . . Unidentified Prototypes 1 | . . . 1 . . Parts Lost 18 | . . . 6 . 12 Power 4 | . . . 2 . 2 Propulsion 6 | . . . 2 . 4 Utility 4 | . . . 2 . 2 Weapon 4 | . . . . . 4 Highest Loss Streak 12 | . . . 2 . 12 To Critical Strikes 6 | . . . . . 6 Average Slot Usage (%) 98 | . 100 100 98 100 90 Engine 12 | . 14 14 11 11 9 Treads 12 | . 21 . 2 1 18 Wheel 11 | . 6 28 18 20 . Device 11 | . 11 14 12 11 . Storage 12 | . 14 14 11 11 11 Processor 5 | . . . 11 11 11 Protection 7 | . 2 . 9 11 20 Energy Gun 2 | . 2 . 3 . . Energy Cannon 12 | . 23 14 5 . . Ballistic Gun 6 | . . . 11 21 13 Launcher 1 | . . 14 . . 5 Naked Turns . | . . . . . . Heaviest Build 100 | 13 92 92 100 100 100 Greatest Support 44 | 40 40 20 44 44 44 Greatest Overweight (x) 29 | 3 4 4 9 3 29 Average Overweight (x) 3 | . 2 4 3 2 2 Largest Inventory Capacity 25 | 8 25 25 25 25 25 Average Capacity 23 | 7 24 25 25 25 25 Most Carried 25 | 5 25 22 25 25 25 Average Carried 21 | 2 19 22 23 25 24 Final Capacity 25 | 8 25 25 25 25 25 Final Carried 25 | 5 22 22 25 25 20 Class Distribution -------------------- 54% | Mutant 45% | Scavenger-Mutant Dominant Class ---------------- Mutant | -10/Materials Scavenger-Mutant | -10/Mines Scavenger-Mutant | -9/Materials Scavenger-Mutant | -9/Mines Mutant | -9/Exiles Resources | -11 -10 -10 -9 -9 -9 ----------- Run | Yrd Mat Min Mat Min Exi Matter Collected 1787 | 280 263 31 1206 . 7 Remotely 347 | . . . 347 . . Salvage Created 2452 | 92 814 . 1523 . 23 Parts 161 | 8 60 . 89 . 4 Haulers Intercepted 2 | . 1 . 1 . . Recyclers Shooed 3 | . 1 . 2 . . Parts Field Recycled . | . . . . . . Retrieved Matter . | . . . . . . Parts Self-Destructed . | . . . . . . Prevented . | . . . . . . Kills | -11 -10 -10 -9 -9 -9 ------- Run | Yrd Mat Min Mat Min Exi Combat Hostiles Destroyed 54 | . 17 . 30 . 7 Guns 17 | . 2 . 15 . . Cannons 21 | . 15 . 6 . . AOE 16 | . . . 9 . 7 Classes Destroyed 11 | 2 7 . 1 . 1 Worker 9 | . 4 . 5 . . Builder 3 | . 1 . 2 . . Tunneler 2 | 2 . . . . . Hauler 2 | . 1 . 1 . . Recycler 6 | 1 1 . 4 . . Operator 2 | . 1 . 1 . . Watcher 7 | . 3 . 4 . . Swarmer 15 | . 6 . 9 . . Grunt 27 | . 11 . 16 . . Sentry 5 | . . . 5 . . Assembled 7 | . . . . . 7 Best Kill Streak 8 | 1 4 . 5 . 8 Combat Bots Only 7 | . 3 . 5 . 7 Max Kills in Single Turn 4 | 1 1 . 4 . 3 Gunslinging . | . . . . . . Exploded 3 | . . . 3 . 3 Melee . | . . . . . . Uniques/NPCs Destroyed 1 | . . . . . 1 EX-HEX (-9/Exiles) Combat | -11 -10 -10 -9 -9 -9 -------- Run | Yrd Mat Min Mat Min Exi Hostile Shots Fired 305 | . 93 . 140 . 72 Missed 72 | . 23 . 26 . 23 Damage Taken 2998 | . 617 16 1394 . 971 Core 548 | . 135 . 195 . 218 Absorbed by Shields 17 | . . . . . 17 Redirected to Shielding 91 | . 1 . 45 . 45 Core Remaining (%) 73 | 100 . 46 . . . Volleys Fired 195 | 10 72 1 99 . 13 Largest 2 | 2 2 1 2 . 2 Hottest 120 | 80 120 30 120 . 61 Shots Fired 366 | 20 133 1 192 . 20 Gun 191 | 20 20 . 137 . 14 Cannon 153 | . 107 . 46 . . Launcher 18 | . 2 1 9 . 6 Special 4 | . 4 . . . . Kinetic 105 | . . . 95 . 10 Thermal 243 | 20 131 . 88 . 4 Explosive 18 | . 2 1 9 . 6 Electromagnetic . | . . . . . . Robot Hit Streak 8 | 7 8 . 7 . 7 Robot Miss Streak 7 | 2 7 . 4 . 4 Penetration Max . | . . . . . . Secondary Targets 1 | . . . 1 . . Max Gunslinging Chain 1 | . . . 1 . . Shots Hit Robots 191 | 15 54 . 112 . 10 Core Hits 116 | 4 30 2 65 . 15 Critical Kills . | . . . . . . Critical Parts Destroyed . | . . . . . . Critical Strikes 5 | . . . 4 . 1 Burn 5 | . . . 4 . 1 Melee Attacks 22 | . 7 . 14 . 1 Impact 5 | . . . 4 . 1 Slashing 16 | . 7 . 9 . . Piercing . | . . . . . . Sneak Attacks 1 | . . . 1 . . Combat Hostiles . | . . . . . . Follow-up Attacks . | . . . . . . Damage Inflicted 4492 | 170 1113 23 2664 . 522 Guns 1599 | 170 122 . 1258 . 49 Cannons 1327 | . 871 . 456 . . Explosions 1566 | . 120 23 950 . 473 Melee . | . . . . . . Ramming . | . . . . . . Kinetic 783 | . . . 738 . 45 Thermal 2224 | 170 1074 . 976 . 4 Explosive 1485 | . 39 23 950 . 473 Electromagnetic . | . . . . . . Impact . | . . . . . . Slashing . | . . . . . . Piercing . | . . . . . . Highest Corruption 3 | . 1 1 3 3 3 Average Corruption 1 | . 1 1 2 3 3 Corruption Purged . | . . . . . . Corruption Blocked . | . . . . . . Effects 30 | . 10 1 11 4 4 Message Errors 7 | . 2 1 3 1 . Matter Fused 9 | . 4 . 2 2 1 Heat Flow Errors 2 | . . . 1 . 1 Energy Discharges 5 | . 2 . 3 . . Data Loss (minor) 2 | . 1 . . 1 . Misfires 1 | . . . . . 1 Weapon Failures 4 | . 1 . 2 . 1 Overload Shots . | . . . . . . Overflow Damage 60 | . 17 . 36 . 7 Projectiles 19 | . 17 . 2 . . Explosions 41 | . . . 34 . 7 Melee . | . . . . . . Knockbacks . | . . . . . . Impact . | . . . . . . Kinetic . | . . . . . . Secondary . | . . . . . . Self-Inflicted Damage 95 | . . . 6 . 89 Shots 3 | . . . 1 . 2 Rammed . | . . . . . . Targets Rammed . | . . . . . . Kicked . | . . . . . . Crushed . | . . . . . . Highest Temperature 422 | 106 422 . 312 . 271 Average Temperature 85 | 47 106 . 69 . 71 Received Heat Transfer 599 | . 126 . 453 . 20 Effects 5 | . 5 . . . . Shutdowns 2 | . 2 . . . . Interference 3 | . 3 . . . . Siege Activations . | . . . . . . Robots Corrupted . | . . . . . . Combat Hostiles . | . . . . . . Parts Fried . | . . . . . . Impact Corruptions . | . . . . . . Robots Melted . | . . . . . . Combat Hostiles . | . . . . . . Parts Melted 4 | . 2 . 2 . . Heat Transferred 4769 | 375 2175 . 2183 . 36 Parts Sabotaged . | . . . . . . Parts Stolen . | . . . . . . Parts Stripped . | . . . . . . Power Chain Reactions . | . . . . . . Alert | -11 -10 -10 -9 -9 -9 ------- Run | Yrd Mat Min Mat Min Exi Peak Influence 428 | 15 230 73 428 145 . Initial 145 | . 9 69 27 145 . Average 116 | 6 96 72 151 145 . Maximum Alert Level 2 | . 1 . 2 . . Low Security (%) 84 | 100 95 100 68 100 . Level 1 14 | . 4 . 28 . . Level 2 1 | . . . 3 . . Level 3 . | . . . . . . Level 4 . | . . . . . . Level 5 . | . . . . . . High Security . | . . . . . . Max Security . | . . . . . . Squads Dispatched 8 | . 4 . 4 . . Investigation 4 | . 2 . 2 . . Extermination . | . . . . . . Reinforcement 4 | . 2 . 2 . . Assault . | . . . . . . Garrison . | . . . . . . Intercept . | . . . . . . Searches Triggered . | . . . . . . Construction Impeded 1 | . . . 1 . . Haulers Reinforced . | . . . . . . Active Scanning Responses . | . . . . . . Cargo Convoy Interrupts . | . . . . . . Stealth | -11 -10 -10 -9 -9 -9 --------- Run | Yrd Mat Min Mat Min Exi Distress Signals 3 | . 2 . 1 . . Communications Jammed . | . . . . . . Distress Signals . | . . . . . . Times Spotted 82 | . 25 3 45 . 9 Peak Tracking Total 10 | . 4 3 8 . 10 Tactical Retreats 4 | . 1 1 1 . 1 Traps | -11 -10 -10 -9 -9 -9 ------- Run | Yrd Mat Min Mat Min Exi Traps Triggered 3 | . 1 . 2 . . Indirectly . | . . . . . . Trap Hack Attempts . | . . . . . . Triggered . | . . . . . . Disarmed 4 | . 4 . . . . Reprogrammed . | . . . . . . Reused . | . . . . . . Traps Extracted . | . . . . . . Installed . | . . . . . . Triggered . | . . . . . . Machines | -11 -10 -10 -9 -9 -9 ---------- Run | Yrd Mat Min Mat Min Exi Machines Disabled 13 | . 6 . 4 . 3 Max in Single Turn 3 | . 3 . 1 . 2 Machines Repaired . | . . . . . . Machines Dismantled . | . . . . . . Machines Sabotaged . | . . . . . . Overloaded Fab Kills . | . . . . . . Hacking | -11 -10 -10 -9 -9 -9 --------- Run | Yrd Mat Min Mat Min Exi Machines Accessed 10 | . 5 . 5 . . Terminals 9 | . 4 . 5 . . Fabricators . | . . . . . . Repair Stations . | . . . . . . Recycling Units 1 | . 1 . . . . Scanalyzers . | . . . . . . Garrison Access . | . . . . . . Total Hacks 28 | . 13 . 15 . . Successful 14 | . 7 . 7 . . Failed 14 | . 6 . 8 . . Catastrophic 3 | . 2 . 1 . . Database Lockouts . | . . . . . . Manual 15 | . 10 . 5 . . Terminals 27 | . 12 . 15 . . Fabricators . | . . . . . . Repair Stations . | . . . . . . Recycling Units 1 | . 1 . . . . Scanalyzers . | . . . . . . Garrison Access . | . . . . . . Terminal Hacks 10 | . 3 . 7 . . Record 1 | . . . 1 . . Prototype ID Bank 1 | . . . 1 . . Branch Access Points 1 | . . . 1 . . Emergency Access Points 1 | . . . 1 . . Terminal Index 2 | . 1 . 1 . . Alert Level 1 | . . . 1 . . Unreport Threat 1 | . . . 1 . . Locate Traps 1 | . 1 . . . . Disarm Traps 1 | . 1 . . . . Fabricator Hacks . | . . . . . . Repair Station Hacks . | . . . . . . Recycling Unit Hacks 1 | . 1 . . . . Report Inventory 1 | . 1 . . . . Scanalyzer . | . . . . . . Garrison Access Hacks . | . . . . . . Unauthorized Hacks 3 | . 3 . . . . Terminals 3 | . 3 . . . . Assimilate 1 | . 1 . . . . Botnet 2 | . 2 . . . . Fabricators . | . . . . . . Repair Stations . | . . . . . . Recycling Units . | . . . . . . Scanalyzers . | . . . . . . Garrison Access . | . . . . . . Data Cores Recovered . | . . . . . . Used . | . . . . . . Hacking Detections 8 | . 4 . 4 . . Full Trace Events 4 | . 2 . 2 . . Feedback Events 1 | . 1 . . . . Corruption 1 | . 1 . . . . Feedback Blocked . | . . . . . . Robot Schematics Acquired . | . . . . . . Robots Built . | . . . . . . Authchips . | . . . . . . Time . | . . . . . . Total Robot Build Rating . | . . . . . . Part Schematics Acquired . | . . . . . . Parts Built . | . . . . . . Authchips . | . . . . . . Time . | . . . . . . Total Part Build Rating . | . . . . . . Parts Repaired . | . . . . . . Time . | . . . . . . Parts Recycled . | . . . . . . Recycled Matter . | . . . . . . Retrieved Matter . | . . . . . . Retrieved Components . | . . . . . . Parts Scanalyzed . | . . . . . . Part Schematics Acquired . | . . . . . . Parts Damaged . | . . . . . . Bothacking | -11 -10 -10 -9 -9 -9 ------------ Run | Yrd Mat Min Mat Min Exi Used RIF Installer . | . . . . . . Robots Hacked . | . . . . . . Non-combat . | . . . . . . Combat . | . . . . . . Robot Hacks Applied . | . . . . . . Relay Couplers Released . | . . . . . . Fabnet Peak Effective % . | . . . . . . Robots Rewired . | . . . . . . Allies Hacked . | . . . . . . Hacks Repelled . | . . . . . . Allies | -11 -10 -10 -9 -9 -9 -------- Run | Yrd Mat Min Mat Min Exi Total Allies . | . . . . . . Largest Group . | . . . . . . Highest-Rated Group . | . . . . . . Highest-Rated Ally . | . . . . . . Total Orders . | . . . . . . Ally Attacks . | . . . . . . Total Damage . | . . . . . . Kills . | . . . . . . Allies Corrupted . | . . . . . . Allies Melted . | . . . . . . Intel | -11 -10 -10 -9 -9 -9 ------- Run | Yrd Mat Min Mat Min Exi Robot Analysis Total . | . . . . . . Derelict Logs Recovered 1 | . . . . 1 . Drone Launches . | . . . . . . Drone Recoveries . | . . . . . . Exploration | -11 -10 -10 -9 -9 -9 ------------- Run | Yrd Mat Min Mat Min Exi Turns Passed 4264 | 214 1755 100 1684 177 334 Spaces Moved 1722 | 110 590 49 765 124 84 Core 15 | 14 . . . . 1 Treads 577 | 96 370 . 28 1 82 Legs . | . . . . . . Wheels 1130 | . 220 49 737 123 1 Hover . | . . . . . . Flight . | . . . . . . Fastest Speed 50 | 50 140 140 130 135 135 Average Speed 188 | 152 238 140 151 136 317 Slowest Speed 1500 | 200 320 140 465 305 1500 Overloaded Moves . | . . . . . . Propulsion Burnouts . | . . . . . . Robots Hopped . | . . . . . . Cave-ins Triggered . | . . . . . . Exploration Rate (%) 39 | 6 92 23 57 36 20 Regions Visited 5 Branch Regions 3 Pre-discovered Areas 1 | . . . . 1 . Known Exits Taken 1 | . . . 1 . . Unknown Exits Taken 4 | 1 1 1 . 1 . Scrap Searched 1 | . . 1 . . . Spaces Dug 17 | . 10 . 6 . 1 Terrain Destroyed 172 | . 57 8 71 . 36 Melee 13 | . 6 . 6 . 1 Projectile 4 | . 4 . . . . AOE 155 | . 47 8 65 . 35 Terrain Rammed . | . . . . . . Walls Destroyed . | . . . . . . Machines Disabled . | . . . . . . Actions | -11 -10 -10 -9 -9 -9 --------- Run | Yrd Mat Min Mat Min Exi Total 2300 | 133 771 79 1058 130 129 Wait 101 | . 18 29 34 . 20 Move 1717 | 109 589 48 764 123 84 Hop . | . . . . . . Pick Up 64 | 5 29 . 30 . . Fast Attach 20 | 8 2 . 10 . . Attach 20 | . 2 . 12 . 6 Detach 7 | . 3 . 3 . 1 Swap 108 | . 34 1 62 7 4 Drop 46 | 1 15 . 30 . . Fire 195 | 10 72 1 99 . 13 Melee 22 | . 7 . 14 . 1 Ram . | . . . . . . Kick . | . . . . . . Crush . | . . . . . . Escape Stasis . | . . . . . . Rewire . | . . . . . . Trap . | . . . . . . Miscellaneous . | . . . . . . Route ------- -11/Scrapyard -10/Materials (discovered 5 exits: *Mat x3 / [*Min x2]) -10/Mines -9/Materials (discovered 2 exits: *Mat / *Min) -9/Mines -9/Exiles (discovered 1 exit: [*Min]) History --------- Turn | Location | Event 21 | -11/Scrapyard | Discovered new exit (range 16) 215 | -11/Scrapyard | Entered Materials 280 | -10/Materials | Discovered new exit (range 7) 306 | -10/Materials | Build established: Mutant 729 | -10/Materials | Discovered new exit (range 11) 1264 | -10/Materials | Discovered new exit (range 14) 1514 | -10/Materials | Core integrity fell below 50% 1637 | -10/Materials | Discovered new exit (range 9) 1778 | -10/Materials | Discovered new exit (range 15) 1970 | -10/Materials | Entered Mines 1978 | -10/Mines | Assembled infested the area 1983 | -10/Mines | Assisted by a Guerilla fighting off Assembled 2008 | -10/Mines | Discovered new exit (range 13) 2070 | -10/Mines | Entered Materials 2070 | -9/Materials | Evolved 2 slots: Utility x2 2094 | -9/Materials | Build established: Scavenger-Mutant 2560 | -9/Materials | Discovered new exit (range 17) 2632 | -9/Materials | Identified exit to Materials 2892 | -9/Materials | Identified exit to Mines 3754 | -9/Materials | Entered Mines 3895 | -9/Mines | A weapon hastily lodged in a ceiling crevice suddenly fell to the ground 3917 | -9/Mines | Deemed a non-threat by the Exiles lab entrance 3917 | -9/Mines | Discovered new exit (range 5) 3931 | -9/Mines | Entered Exiles 3986 | -9/Exiles | Discovered new exit (range 14) 4093 | -9/Exiles | Met 8R-AWN 4180 | -9/Exiles | Met EX-HEX 4192 | -9/Exiles | Attacked by the Exiles 4193 | -9/Exiles | Core integrity fell below 50% 4203 | -9/Exiles | Destroyed EX-HEX 4226 | -9/Exiles | Destroyed 7 combat bots 4237 | -9/Exiles | Core integrity fell below 20% 4254 | -9/Exiles | Build established: Mutant 4265 | -9/Exiles | Destroyed by 8R-AWN with 8R-AWN's Boregun Last Messages --------------- The unstable cave ceiling collapses. Penetrated by HV Slug. HV Slug penetrates Wall. Penetrated by HV Slug. Ion Engine destroyed. Penetrated by HV Slug. HV Slug penetrates Wall. Penetrated by HV Slug. HV Slug penetrates Wall. HV Slug penetrates Earth. Penetrated by HV Slug. The unstable cave ceiling collapses. 8R-AWN suffers critical hit (Burn). Penetrated by HV Slug. Critical hit (Destroy). Adv. Beam Rifle destroyed. Penetrated by HV Slug. Core Shielding destroyed. System corrupted: Matter fused (-5). Penetrated by HV Slug. Map ----- +----------------------------------------------------+ | ?????????????????????????????????????????????????? | | ?????????????????????????????????????????????????? | | ?????????????????????????????????????????????????? | | ?????????????????????????????????????????????????? | | ?????????????????????????????????????????????????? | | ?????????????????????????????????????????????????? | | ?????????????????????????????????????????????????? | | ?????????????????????????????????????????????????? | | ?????????????????????????????????????????????????? | | ?????????????????????????????????????????????????? | | ?????????????????????????????????????????????????? | | ?????????????????????????????????????????????????? | | ????????????????? ? ???????????????????????????? | | ??????????????? " ""??????????????????????????? | | ?????????????? "a"????????????#####????????? | | ?????????????? " "#??????????##" #????????? | | ????????????? ""###???????#" #????????? | | ????????????? """#??????##" ##???????? | | ???????????? #????### ###?????? | | ???????????? ##???# ####### | | ???????????? ##?## #""""# | | ???????????" ### g | | ??????????? # * | | ??????????" # ## | | ?????????? ""#?#"""""###" | | ?????????? @! #"""##?#######?#### | | ?????????? ! ######?????????????? | | ?????????? #?????????????????? | | ??????????? ##?????????????????? | | ??????????? ##?????????????????? | | ????????????" ###??????????????????? | | ????????????" """; #????????????????????? | | ??????????????""###; # #????????????????????? | | ??????????????????# # #????????????????????? | | ??????????????????# #########????????????????????? | | ??????????????????#??????????????????????????????? | | ?????????????????????????????????????????????????? | | ?????????????????????????????????????????????????? | | ?????????????????????????????????????????????????? | | ?????????????????????????????????????????????????? | | ?????????????????????????????????????????????????? | | ?????????????????????????????????????????????????? | | ?????????????????????????????????????????????????? | | ?????????????????????????????????????????????????? | | ?????????????????????????????????????????????????? | | ?????????????????????????????????????????????????? | | ?????????????????????????????????????????????????? | | ?????????????????????????????????????????????????? | | ?????????????????????????????????????????????????? | | ?????????????????????????????????????????????????? | +----------------------------------------------------+ Best States ------------- Heat Dissipation 38 Energy Generation 12 Energy Capacity 265 Matter Stores 300 Matter Capacity 300 Sight Range 18 Robot Scan Range 14 Terrain Scan Range 16 Terrain Scan Density 10 Armor Coverage 150 Core Shielding 20 Weapon Shielding 33 Evasion (%) 40 Targeting Accuracy 5 Recoil Reduction 2 Item Schematics ----------------- None Robot Schematics ------------------ None Fabricated ------------ Nothing Alien Tech Used ----------------- None Achievements -------------- None Challenges ------------ None Game ------ Seed RemoteGuidanceFirepult Manual? 0 Play Time 01:20:13 Cumulative 20.9 hours Start 2024.06.30 @ 16:03:12 End 2024.06.30 @ 17:25:41 Sessions 1 Manual Loads 0 Difficulty Rogue Special Mode None Game No. 23 Rogue 22 Adventurer 1 Explorer 0 Win Type - Total 0 Types 0/0/0/0/0/0/0/0/0 Lore% 7 Gallery% 15 Achievement% 16 Wizard Run 0 Options --------- Layout 1 ASCII 0 Keyboard 0 Movement Mouse Keybinds 0 Fullscreen 2 Font 24/Smallcaps Map View 50x35 Zoom Use 0% Tactical HUD 0 Map Filters NONE Filters NONE Steam 1 RUN: a25b448d-bf9b-4241-a4ae-36b675859786